bitfinex/quotes_SOLUSD_20250602
["timestamp","ask_amount","ask_price","bid_price","bid_amount"]
[1748869983770,3.73221191,153.89,153.87,18.64964886]
[1748869983976,3.73221191,153.88,153.87,18.64964886]
[1748869984277,29.09986767,153.88,153.84,83.83730462]
[1748869984475,25.36765576,153.88,153.84,83.83730462]
[1748869984866,25.36765576,153.88,153.84,58.46964886]
[1748869985287,25.36765576,153.86,153.84,18.64964886]
[1748869986801,29.09856223,153.87,153.84,18.64964886]
[1748869988598,25.36765576,153.87,153.84,18.64964886]
[1748869989606,29.09922368,153.87,153.84,18.64964886]
[1748869990993,25.36765576,153.87,153.84,18.64964886]
[1748869994389,3.73023064,153.88,153.84,18.64964886]
[1748869994698,25.36765576,153.87,153.84,18.64964886]
[1748869995084,27.6024395,153.9,153.84,44.01730462]
[1748869995286,29.09760238,153.89,153.84,44.01730462]
[1748869995489,29.09760238,153.88,153.84,44.01730462]
[1748869995675,25.36765576,153.88,153.84,44.01730462]
[1748869995880,25.36765576,153.88,153.84,50.5175138]
[1748869996102,29.09744826,153.88,153.84,50.5175138]
[1748869996304,25.36765576,153.88,153.84,50.5175138]
[1748869996619,29.09744826,153.88,153.84,50.5175138]
[1748869996780,25.36765576,153.88,153.84,50.5175138]
[1748869996979,29.09744826,153.88,153.84,50.5175138]
[1748869997192,25.36765576,153.88,153.84,50.5175138]
[1748869997406,29.09744826,153.88,153.84,50.5175138]
[1748869997579,25.36765576,153.88,153.84,50.5175138]
[1748869997769,29.09744826,153.88,153.84,50.5175138]
[1748869997976,25.36765576,153.88,153.84,50.5175138]
[1748869998187,29.09744826,153.88,153.84,50.5175138]
[1748869998385,25.36765576,153.86,153.84,18.64964886]
[1748869998593,25.36765576,153.87,153.84,18.64964886]
[1748869999509,10.34,153.9,153.84,44.01730462]
[1748869999510,29.09689402,153.88,153.84,44.01730462]
[1748869999800,25.36765576,153.88,153.84,44.01730462]
[1748870000006,29.09674034,153.88,153.84,44.01730462]
[1748870000187,25.36765576,153.88,153.84,44.01730462]
[1748870000377,29.09674034,153.88,153.84,44.01730462]
[1748870000574,25.36765576,153.88,153.84,44.01730462]
[1748870000811,29.09674034,153.88,153.84,44.01730462]
[1748870001105,25.36765576,153.88,153.84,44.01730462]
[1748870001278,29.09666481,153.89,153.84,50.51752726]
[1748870001616,29.09637454,153.89,153.84,50.51752726]
[1748870001781,25.36765576,153.88,153.84,50.51752726]
[1748870003295,25.36765576,153.88,153.84,41.3680343]
[1748870003296,16.2181628,153.88,153.84,41.3680343]
[1748870004709,19.94688158,153.89,153.84,41.3680343]
[1748870005595,19.94578987,153.89,153.84,41.3680343]
[1748870005994,16.2181628,153.89,153.84,41.3680343]
[1748870007081,10.34,153.9,153.86,16.2181628]
[1748870007801,19.94578987,153.91,153.88,18.64964886]
[1748870008208,19.94578987,153.91,153.87,18.64964886]
[1748870008538,16.2181628,153.91,153.87,18.64964886]
[1748870008704,5.28212707,153.92,153.87,41.36680239]
[1748870008903,21.50028987,153.92,153.88,16.2181628]
[1748870009127,1.5545,153.92,153.88,16.2181628]
[1748870009313,3.72450273,153.93,153.9,18.64964886]
[1748870009501,25.32669494,153.93,153.9,18.64964886]
[1748870010805,35.64669494,153.94,153.91,18.64964886]
[1748870011315,35.64669494,153.94,153.9,18.64964886]
[1748870011497,10.32,153.94,153.9,18.64964886]
[1748870012194,25.32669494,153.93,153.9,18.64964886]
[1748870014032,10.32,153.94,153.9,18.64964886]
[1748870014330,35.64669494,153.94,153.91,18.64964886]
[1748870016606,60.68533551,153.99,153.91,18.64964886]
[1748870016607,15.83611029,154.0,153.95,44.64964886]
[1748870016805,8.14085989,154.02,153.97,18.64964886]
[1748870017124,25.32669494,154.0,153.96,18.64964886]
[1748870017296,11.8595939,154.02,153.96,18.64964886]
[1748870017297,25.32669494,153.99,153.96,18.64964886]
[1748870020934,1.6479,154.02,153.97,25.32669494]
[1748870021102,25.32669494,154.0,153.96,43.9763438]
[1748870021298,25.32669494,154.0,153.96,18.64964886]
[1748870022523,1.6479,154.02,153.96,50.4714751]
[1748870022826,25.32669494,154.01,153.96,50.4714751]
[1748870024257,25.32669494,154.0,153.96,50.4714751]
[1748870025315,25.32669494,153.99,153.96,18.64964886]
[1748870026544,8.14063356,154.02,153.96,18.64964886]
[1748870026746,25.32669494,154.0,153.96,18.64964886]
[1748870028130,25.32669494,154.0,153.96,50.47148435]
[1748870028333,25.32669494,154.01,153.96,50.47148435]
[1748870029330,25.32669494,154.01,153.96,43.9763438]
[1748870030627,25.32669494,154.0,153.96,43.9763438]
[1748870031238,25.32669494,154.0,153.96,18.64964886]
[1748870033640,25.32669494,154.0,153.96,43.9763438]
[1748870035064,25.32669494,153.98,153.96,18.64964886]
[1748870035366,25.32669494,153.97,153.96,18.64964886]
[1748870036842,22.72583114,154.01,153.96,18.64964886]
[1748870037032,25.32669494,153.97,153.96,18.64964886]
[1748870037632,25.32669494,153.97,153.95,4.12614015]
[1748870037834,25.32669494,153.96,153.95,22.77578901]
[1748870040576,25.32669494,153.97,153.95,22.77578901]
[1748870040751,25.32669494,153.97,153.96,18.64964886]
[1748870040952,35.62669494,153.98,153.96,18.64964886]
[1748870041154,25.32669494,153.97,153.96,18.64964886]
[1748870041665,25.32669494,153.97,153.95,4.12614015]
[1748870041874,25.32669494,153.96,153.95,4.12614015]
[1748870043275,16.79441868,153.98,153.95,4.12614015]
[1748870043483,25.32669494,153.97,153.95,4.12614015]
[1748870048070,10.3,153.98,153.96,18.64964886]
[1748870048390,25.32669494,153.97,153.96,18.64964886]
[1748870050894,31.82146664,153.97,153.95,4.12614015]
[1748870051090,25.32669494,153.96,153.95,4.12614015]
[1748870052179,31.82188849,153.96,153.95,4.12614015]
[1748870053188,22.70032512,153.96,153.95,4.12614015]
[1748870053694,26.4222109,153.96,153.95,4.12614015]
[1748870055187,35.54201733,153.96,153.95,4.12614015]
[1748870055696,35.54635464,153.96,153.95,4.12614015]
[1748870056677,40.20413351,153.96,153.95,4.12614015]
[1748870056998,35.54635464,153.96,153.95,4.12614015]
[1748870057190,40.20413351,153.96,153.95,4.12614015]
[1748870057582,35.54635464,153.96,153.95,4.12614015]
[1748870059096,40.20413351,153.96,153.95,4.12614015]
[1748870059398,35.54635464,153.96,153.95,4.12614015]
[1748870059775,35.54597573,153.96,153.95,4.12614015]
[1748870063997,35.54458026,153.96,153.95,4.12614015]
[1748870067801,35.54392691,153.96,153.95,4.12614015]
[1748870070100,29.04873336,153.96,153.95,4.12614015]
[1748870071798,29.04946863,153.96,153.95,4.12614015]
[1748870073708,25.324938,153.97,153.96,18.64964886]
[1748870074095,25.324938,153.97,153.95,4.12614015]
[1748870074493,39.34946863,153.98,153.95,4.12614015]
[1748870074698,25.324938,153.97,153.95,4.12614015]
[1748870076508,25.324938,153.96,153.95,4.12614015]
[1748870077585,29.05237528,153.96,153.95,22.77578901]
[1748870077988,35.54756883,153.96,153.95,4.12614015]
[1748870079614,31.82013155,153.96,153.95,4.12614015]
[1748870079816,35.54933679,153.96,153.95,4.12614015]
[1748870080391,31.82013155,153.96,153.95,4.12614015]
[1748870080614,35.54969702,153.96,153.95,4.12614015]
[1748870081115,40.21165386,153.96,153.95,4.12614015]
[1748870081920,35.54969702,153.96,153.95,4.12614015]
[1748870083795,35.54989403,153.96,153.95,4.12614015]
[1748870085310,10.22495603,153.96,153.95,4.12614015]
[1748870085523,35.54989403,153.96,153.95,4.12614015]
[1748870087722,35.54943964,153.96,153.95,4.12614015]
[1748870091723,35.54962655,153.96,153.95,4.12614015]
[1748870092623,1.5775,153.95,153.85,34.0441]
[1748870092822,1.5775,153.95,153.86,18.64964886]
[1748870092823,25.324938,153.87,153.86,18.64964886]
[1748870093131,25.324938,153.87,153.83,18.64964886]
[1748870093434,25.324938,153.86,153.83,44.64964886]
[1748870093912,25.324938,153.84,153.82,58.40964886]
[1748870094105,25.324938,153.84,153.82,18.64964886]
[1748870096326,25.324938,153.85,153.82,18.64964886]
[1748870097706,10.22547349,153.88,153.82,18.64964886]
[1748870097913,25.324938,153.85,153.82,18.64964886]
[1748870103338,6.49908463,153.87,153.82,18.64964886]
[1748870103518,25.324938,153.85,153.82,18.64964886]
[1748870105234,25.324938,153.87,153.84,18.64964886]
[1748870106247,25.324938,153.86,153.83,18.64964886]
[1748870108630,25.324938,153.87,153.83,25.15028093]
[1748870108835,18.43321529,153.9,153.83,25.15028093]
[1748870109140,25.324938,153.88,153.84,25.324938]
[1748870109939,25.324938,153.88,153.85,18.64964886]
[1748870110237,25.324938,153.89,153.85,43.97458686]
[1748870111025,10.3,153.9,153.85,43.97458686]
[1748870111244,25.324938,153.89,153.85,43.97458686]
[1748870111448,25.324938,153.88,153.85,18.64964886]
[1748870112633,10.3,153.9,153.85,18.64964886]
[1748870112940,10.3,153.9,153.87,18.64964886]
[1748870113941,10.3,153.9,153.87,43.97458686]
[1748870114140,10.3,153.9,153.87,18.64964886]
[1748870114344,35.624938,153.9,153.87,18.64964886]
[1748870114646,25.324938,153.89,153.86,18.64964886]
[1748870115039,25.324938,153.88,153.85,18.64964886]
[1748870115437,25.324938,153.89,153.85,18.64964886]
[1748870116648,25.324938,153.88,153.85,18.64964886]
[1748870119846,25.324938,153.87,153.84,18.64964886]
[1748870124342,25.324938,153.87,153.84,25.14990773]
[1748870125058,14.02215926,153.9,153.84,50.47484573]
[1748870125252,25.324938,153.88,153.84,50.47484573]
[1748870128162,25.324938,153.88,153.84,43.97458686]
[1748870128332,25.324938,153.88,153.84,18.64964886]
[1748870128958,25.324938,153.88,153.84,25.14975459]
[1748870130161,25.324938,153.88,153.84,50.47469259]
[1748870131349,25.324938,153.88,153.84,25.14975459]
[1748870138374,25.324938,153.88,153.84,50.47469259]
[1748870139275,16.21827597,153.88,153.84,41.36803056]
[1748870140472,19.95028299,153.88,153.84,41.36803056]
[1748870141163,16.21827597,153.88,153.84,41.36803056]
[1748870142655,3.73244177,153.89,153.87,16.21827597]
[1748870142978,10.3,153.9,153.89,18.64964886]
[1748870143185,3.731676,153.92,153.89,18.64964886]
[1748870143392,16.21827597,153.93,153.89,18.64964886]
[1748870143684,3.73103158,153.92,153.89,18.64964886]
[1748870143882,16.21827597,153.93,153.89,18.64964886]
[1748870144195,16.21827597,153.93,153.91,18.64964886]
[1748870144196,3.72967792,153.93,153.91,18.64964886]
[1748870144370,11.06739501,153.96,153.91,18.64964886]
[1748870144371,16.21827597,153.94,153.91,25.14686215]
[1748870144681,3.7293998,153.95,153.92,16.21827597]
[1748870144877,16.21827597,153.96,153.92,16.21827597]
[1748870145093,3.72908433,153.96,153.93,34.86792483]
[1748870145267,129.19157809,153.97,153.93,43.96122695]
[1748870146280,129.19157809,153.97,153.93,50.45754557]
[1748870146494,129.19157809,153.97,153.93,25.14596748]
[1748870146661,10.3,153.97,153.94,25.31157809]
[1748870147183,35.61157809,153.97,153.93,50.45754557]
[1748870150277,10.3,153.97,153.93,50.45754557]
[1748870153872,10.3,153.97,153.95,18.64964886]
[1748870154079,47.8472303,153.98,153.95,43.96122695]
[1748870154080,22.53565221,153.98,153.95,43.96122695]
[1748870154378,22.53565221,153.98,153.97,18.64964886]
[1748870154692,47.21449343,154.01,153.97,43.96122695]
[1748870154887,21.90291534,154.01,153.99,18.64964886]
[1748870155082,36.93449343,154.01,153.98,18.64964886]
[1748870155387,25.31157809,153.99,153.98,18.64964886]
[1748870155575,25.31157809,153.99,153.96,18.64964886]
[1748870155765,10.28,154.0,153.96,18.64964886]
[1748870155976,25.31157809,153.99,153.96,18.64964886]
[1748870158577,10.28,154.0,153.96,50.45638086]
[1748870158774,10.28,154.0,153.97,25.31157809]
[1748870159297,10.28,154.0,153.99,18.64964886]
[1748870159465,25.31157809,154.03,153.99,18.64964886]
[1748870161690,25.31157809,154.02,153.99,18.64964886]
[1748870163186,23.2320275,154.04,153.99,18.64964886]
[1748870163603,25.31157809,154.02,153.99,18.64964886]
[1748870163974,25.31157809,154.03,153.99,50.45508436]
[1748870165071,25.31157809,154.03,153.99,43.96122695]
[1748870165284,25.31157809,154.0,153.96,51.31157809]
[1748870165588,11.64592014,154.03,153.97,18.64964886]
[1748870165996,18.13852313,154.03,153.97,18.64964886]
[1748870166167,25.31157809,154.01,153.97,18.64964886]
[1748870166494,25.31157809,154.01,153.97,43.96122695]
[1748870167298,25.31157809,154.0,153.97,18.64964886]
[1748870167796,25.31157809,153.99,153.97,18.64964886]
[1748870169082,25.31157809,154.0,153.97,18.64964886]
[1748870170393,25.31157809,153.98,153.93,18.64964886]
[1748870170600,17.92082014,154.03,153.93,18.64964886]
[1748870170601,25.31157809,153.96,153.93,18.64964886]
[1748870170781,25.31157809,153.95,153.93,18.64964886]
[1748870171114,25.31157809,153.94,153.88,90.3433]
[1748870171404,25.31157809,153.91,153.88,39.72]
[1748870171572,25.31157809,153.91,153.88,65.72]
[1748870171772,25.31157809,153.91,153.89,18.64964886]
[1748870172190,25.31157809,153.91,153.88,18.64964886]
[1748870172392,25.31157809,153.91,153.88,58.38964886]
[1748870172977,25.31157809,153.91,153.88,18.64964886]
[1748870173897,25.31157809,153.89,153.86,18.64964886]
[1748870174204,25.31157809,153.88,153.86,18.64964886]
[1748870174371,25.31157809,153.89,153.86,18.64964886]
[1748870174995,25.31157809,153.91,153.87,25.31157809]
[1748870175194,25.31157809,153.91,153.88,18.64964886]
[1748870175988,25.31157809,153.91,153.88,25.14818149]
[1748870176386,25.31157809,153.91,153.88,18.64964886]
[1748870176989,25.31157809,153.91,153.88,25.14811011]
[1748870178495,25.31157809,153.94,153.9,43.96122695]
[1748870178802,35.59157809,153.95,153.9,43.96122695]
[1748870179201,35.59157809,153.95,153.91,25.31157809]
[1748870179581,10.28,153.95,153.92,18.64964886]
[1748870179775,10.28,153.95,153.93,43.96122695]
[1748870179995,25.31157809,153.97,153.93,43.96122695]
[1748870182196,25.31157809,153.96,153.93,18.64964886]
[1748870186824,6.49453128,153.98,153.93,18.64964886]
[1748870186984,25.31157809,153.96,153.93,18.64964886]
[1748870188418,25.31157809,153.95,153.92,18.64964886]
[1748870188631,6.49537036,153.96,153.92,18.64964886]
[1748870188944,25.31157809,153.95,153.92,18.64964886]
[1748870189723,6.49479825,153.97,153.92,18.64964886]
[1748870190050,25.31157809,153.95,153.92,18.64964886]
[1748870191818,25.31157809,153.96,153.92,18.64964886]
[1748870192017,25.31157809,153.96,153.92,43.96122695]
[1748870193332,10.28,153.99,153.95,18.64964886]
[1748870193535,35.59157809,153.99,153.95,43.96122695]
[1748870193732,10.28,153.99,153.95,43.96122695]
[1748870194128,35.59157809,153.99,153.95,43.96122695]
[1748870194338,10.28,153.99,153.95,18.64964886]
[1748870194630,25.31157809,153.98,153.95,18.64964886]
[1748870195218,25.31157809,153.98,153.93,25.14597236]
[1748870195438,25.31157809,153.96,153.92,51.31157809]
[1748870195649,25.31157809,153.96,153.93,18.64964886]
[1748870196438,25.31157809,153.96,153.91,6.49705588]
[1748870196439,25.31157809,153.94,153.91,18.64964886]
[1748870196619,6.49454054,153.98,153.85,39.2873214]
[1748870196620,25.31157809,153.92,153.88,25.31157809]
[1748870196822,25.31157809,153.92,153.89,26.0]
[1748870197226,25.31157809,153.92,153.9,18.64964886]
[1748870198238,25.31157809,153.91,153.84,120.61170323]
[1748870198457,25.31157809,153.87,153.85,18.64964886]
[1748870198830,25.31157809,153.87,153.86,26.0]
[1748870199154,25.31157809,153.87,153.84,58.44964886]
[1748870199480,25.31157809,153.86,153.83,58.44964886]
[1748870199950,25.31157809,153.86,153.83,18.64964886]
[1748870200156,25.31157809,153.85,153.82,18.64964886]
[1748870200357,25.31157809,153.84,153.82,58.44964886]
[1748870200538,25.31157809,153.85,153.84,26.0]
[1748870201479,25.31157809,153.88,153.85,18.64964886]
[1748870201644,65.11157809,153.92,153.85,18.64964886]
[1748870201645,25.31157809,153.92,153.88,18.64964886]
[1748870201980,25.31157809,153.92,153.87,25.31157809]
[1748870202156,11.863,153.93,153.87,25.31157809]
[1748870202157,25.31157809,153.91,153.88,18.64964886]
[1748870202559,11.863,153.93,153.88,18.64964886]
[1748870202782,25.31157809,153.91,153.88,18.64964886]
[1748870203951,25.31157809,153.9,153.87,58.48964886]
[1748870204144,25.31157809,153.89,153.87,58.48964886]
[1748870204462,25.31157809,153.89,153.87,18.64964886]
[1748870205478,25.31157809,153.9,153.87,18.64964886]
[1748870205669,6.49688149,153.92,153.87,18.64964886]
[1748870205670,25.31157809,153.89,153.87,18.64964886]
[1748870206854,6.49688149,153.92,153.87,18.64964886]
[1748870207074,25.31157809,153.89,153.87,18.64964886]
[1748870207992,6.49688149,153.92,153.87,18.64964886]
[1748870208286,25.31157809,153.88,153.85,18.64964886]
[1748870208489,25.31157809,153.87,153.85,18.64964886]
[1748870208677,25.31157809,153.88,153.85,18.64964886]
[1748870209103,25.31157809,153.86,153.85,18.64964886]
[1748870209265,25.31157809,153.86,153.84,26.0]
[1748870209471,25.31157809,153.85,153.82,44.64964886]
[1748870210379,25.31157809,153.83,153.81,58.48964886]
[1748870210775,25.31157809,153.84,153.81,58.48964886]
[1748870211084,25.31157809,153.84,153.81,18.64964886]
[1748870212080,25.31157809,153.84,153.81,25.15115358]
[1748870212893,25.31157809,153.84,153.81,18.64964886]
[1748870215095,25.31157809,153.82,153.81,18.64964886]
[1748870215775,25.31157809,153.82,153.79,18.64964886]
[1748870215971,25.31157809,153.82,153.76,31.81519022]
[1748870215972,25.31157809,153.8,153.77,18.64964886]
[1748870216171,25.31157809,153.78,153.77,18.64964886]
[1748870218504,25.31157809,153.79,153.77,18.64964886]
[1748870220187,25.31157809,153.82,153.79,18.64964886]
[1748870220387,35.67157809,153.83,153.79,43.96122695]
[1748870220708,25.31157809,153.82,153.78,43.96122695]
[1748870221098,25.31157809,153.82,153.78,18.64964886]
[1748870221614,35.67157809,153.83,153.78,50.46393066]
[1748870221824,35.67157809,153.83,153.79,25.31157809]
[1748870222024,25.31157809,153.82,153.78,50.46393066]
[1748870222218,10.36,153.83,153.78,50.46393066]
[1748870222415,10.36,153.83,153.8,18.64964886]
[1748870222616,10.36,153.83,153.8,43.96122695]
[1748870222926,10.36,153.83,153.81,25.31157809]
[1748870223425,10.36,153.83,153.81,31.81283021]
[1748870223719,10.36,153.83,153.8,50.46303059]
[1748870224207,10.36,153.83,153.8,18.64964886]
[1748870224530,35.67157809,153.83,153.8,25.15154322]
[1748870225114,25.31157809,153.82,153.8,18.64964886]
[1748870226306,35.67157809,153.83,153.8,18.64964886]
[1748870226512,10.36,153.83,153.8,25.15152008]
[1748870228123,35.67157809,153.83,153.8,25.15152008]
[1748870228930,35.67157809,153.83,153.8,18.64964886]
[1748870232946,35.67157809,153.83,153.8,25.15157742]
[1748870233149,35.67157809,153.83,153.81,25.31157809]
[1748870233150,10.36,153.83,153.81,25.31157809]
[1748870233359,10.36,153.83,153.82,18.64964886]
[1748870233564,25.31157809,153.86,153.82,43.96122695]
[1748870233772,35.67157809,153.87,153.82,84.56964886]
[1748870234083,35.67157809,153.87,153.83,25.31157809]
[1748870234253,35.67157809,153.87,153.82,109.88122695]
[1748870234663,10.36,153.87,153.83,25.31157809]
[1748870234973,35.67157809,153.87,153.83,31.81218686]
[1748870237765,35.67157809,153.87,153.84,25.14990868]
[1748870238580,35.67157809,153.87,153.84,18.64964886]
[1748870244289,10.36,153.87,153.84,18.64964886]
[1748870244523,35.67157809,153.87,153.84,18.64964886]
[1748870244984,10.36,153.87,153.84,18.64964886]
[1748870245168,35.67157809,153.87,153.84,18.64964886]
[1748870245769,35.67157809,153.87,153.83,18.64964886]
[1748870247490,25.31157809,153.85,153.83,18.64964886]
[1748870247807,25.31157809,153.84,153.81,18.64964886]
[1748870248094,25.31157809,153.83,153.81,18.64964886]
[1748870248573,25.31157809,153.82,153.81,18.64964886]
[1748870248767,25.31157809,153.82,153.77,18.64964886]
[1748870248968,3.7260316,153.84,153.79,18.64964886]
[1748870249168,25.31157809,153.83,153.8,18.64964886]
[1748870249393,25.31157809,153.82,153.8,18.64964886]
[1748870249570,25.31157809,153.82,153.79,18.64964886]
[1748870251071,25.31157809,153.83,153.79,43.96122695]
[1748870251781,25.31157809,153.83,153.79,50.46352956]
[1748870251971,3.7260316,153.85,153.79,50.46352956]
[1748870252296,25.31157809,153.83,153.79,50.46352956]
[1748870252691,25.31157809,153.84,153.79,50.46352956]
[1748870253071,25.31157809,153.83,153.79,50.46352956]
[1748870255669,25.31157809,153.84,153.79,50.46352956]
[1748870257008,25.31157809,153.84,153.81,18.64964886]
[1748870258991,29.04055384,153.84,153.81,18.64964886]
[1748870259298,25.31157809,153.83,153.81,18.64964886]
[1748870260100,25.31157809,153.82,153.8,18.64964886]
[1748870260282,25.31157809,153.81,153.79,18.64964886]
[1748870260487,25.31157809,153.82,153.79,18.64964886]
[1748870263103,25.31157809,153.83,153.79,43.96122695]
[1748870263303,25.31157809,153.83,153.79,50.46358296]
[1748870263498,25.31157809,153.84,153.8,25.31157809]
[1748870264909,25.31157809,153.84,153.8,31.81342402]
[1748870267508,3.73212911,153.83,153.8,31.81342402]
[1748870267705,25.31157809,153.84,153.8,31.81342402]
[1748870267887,3.73209134,153.83,153.8,31.81342402]
[1748870268208,3.73207562,153.83,153.8,31.81342402]
[1748870268407,25.31157809,153.84,153.8,31.81342402]
[1748870269409,3.73178766,153.83,153.8,31.81342402]
[1748870270308,25.31157809,153.84,153.8,31.81342402]
[1748870271898,25.31157809,153.84,153.8,6.50184593]
[1748870276606,10.38,153.86,153.81,18.64964886]
[1748870276798,25.31157809,153.86,153.82,25.31157809]
[1748870276990,25.31157809,153.87,153.83,18.64964886]
[1748870277190,3.73048259,153.86,153.83,18.64964886]
[1748870277517,25.31157809,153.87,153.83,18.64964886]
[1748870277702,3.73049439,153.86,153.83,18.64964886]
[1748870278213,3.73049439,153.86,153.83,43.96122695]
[1748870278392,29.04207248,153.87,153.83,69.96122695]
[1748870278593,3.73049439,153.87,153.84,6.50026001]
[1748870278791,3.72935454,153.91,153.87,18.64964886]
[1748870279111,25.31157809,153.88,153.87,18.64964886]
[1748870279302,29.04088971,153.88,153.84,18.64964886]
[1748870279492,4.66390299,153.91,153.84,18.64964886]
[1748870279493,25.31157809,153.85,153.84,18.64964886]
[1748870280021,25.31157809,153.85,153.81,84.68964886]
[1748870280185,25.31157809,153.85,153.81,110.00122695]
[1748870280993,25.31157809,153.85,153.81,116.50258018]
[1748870282043,10.38,153.87,153.84,18.64964886]
[1748870282616,35.69157809,153.87,153.84,18.64964886]
[1748870282926,35.69157809,153.87,153.84,25.14981346]
[1748870285507,25.31157809,153.86,153.81,91.35157809]
[1748870285706,25.31157809,153.85,153.84,26.0]
[1748870285902,25.31157809,153.85,153.84,44.64964886]
[1748870286315,25.31157809,153.85,153.79,25.31157809]
[1748870286517,25.31157809,153.82,153.8,18.64964886]
[1748870286818,10.38,153.87,153.8,44.64964886]
[1748870286819,25.31157809,153.83,153.8,44.64964886]
[1748870287594,25.31157809,153.83,153.8,51.15157141]
[1748870287808,25.31157809,153.83,153.8,44.64964886]
[1748870288406,25.31157809,153.83,153.8,51.15153965]
[1748870288599,25.31157809,153.83,153.8,44.64964886]
[1748870289017,25.31157809,153.83,153.8,51.15152294]
[1748870291521,25.31157809,153.83,153.8,44.64964886]
[1748870296432,25.31157809,153.83,153.8,51.15152429]
[1748870296734,29.0403131,153.84,153.8,51.15152429]
[1748870296915,25.31157809,153.84,153.8,51.15152429]
[1748870297629,25.31157809,153.83,153.8,51.15152429]
[1748870297830,3.73026986,153.84,153.82,18.64964886]
[1748870298035,35.69157809,153.85,153.82,18.64964886]
[1748870298217,39.42184795,153.85,153.82,18.64964886]
[1748870298529,35.69157809,153.85,153.82,18.64964886]
[1748870299119,25.31157809,153.84,153.81,18.64964886]
[1748870300030,25.31157809,153.84,153.81,25.15109002]
[1748870300253,25.31157809,153.83,153.81,18.64964886]
[1748870300430,25.31157809,153.82,153.81,18.64964886]
[1748870301312,25.31157809,153.82,153.74,1.5815]
[1748870301544,25.31157809,153.77,153.73,25.31157809]
[1748870301839,6.50237336,153.79,153.76,26.0]
[1748870302010,25.31157809,153.77,153.7,25.31157809]
[1748870302210,25.31157809,153.74,153.71,58.70964886]
[1748870302418,25.31157809,153.74,153.73,26.0]
[1748870302912,25.31157809,153.74,153.69,3.38825148]
[1748870303111,25.31157809,153.72,153.7,58.74964886]
[1748870303316,25.31157809,153.72,153.7,18.64964886]
[1748870303518,25.31157809,153.71,153.69,3.38825148]
[1748870303718,25.31157809,153.71,153.7,26.0]
[1748870303939,25.31157809,153.71,153.7,44.64964886]
[1748870304136,25.31157809,153.71,153.69,3.38825148]
[1748870304313,25.31157809,153.7,153.69,18.64964886]
[1748870304513,25.31157809,153.73,153.69,18.64964886]
[1748870304736,25.31157809,153.74,153.69,69.96122695]
[1748870304924,25.31157809,153.74,153.71,18.64964886]
[1748870306216,25.31157809,153.74,153.73,18.64964886]
[1748870307230,25.31157809,153.74,153.71,25.15524266]
[1748870307431,25.31157809,153.73,153.71,25.15524266]
[1748870307934,25.31157809,153.72,153.65,41.58150678]
[1748870308141,25.31157809,153.7,153.66,58.76964886]
[1748870308338,25.31157809,153.69,153.67,40.12]
[1748870308536,25.31157809,153.7,153.67,40.12]
[1748870308837,25.31157809,153.71,153.68,18.64964886]
[1748870309638,25.31157809,153.72,153.68,43.96122695]
[1748870309837,10.38,153.75,153.7,18.64964886]
[1748870310027,25.31157809,153.73,153.7,18.64964886]
[1748870310223,25.31157809,153.73,153.7,25.15554499]
[1748870310944,10.38,153.75,153.69,25.31157809]
[1748870310945,25.31157809,153.72,153.69,25.15610413]
[1748870311247,25.31157809,153.73,153.69,25.15610413]
[1748870312149,25.31157809,153.73,153.69,50.46768222]
[1748870312324,25.31157809,153.74,153.71,18.64964886]
[1748870312520,35.69157809,153.75,153.72,18.64964886]
[1748870312726,10.38,153.75,153.72,18.64964886]
[1748870313245,35.69157809,153.75,153.72,18.64964886]
[1748870313625,10.38,153.75,153.72,18.64964886]
[1748870313826,10.38,153.75,153.72,69.96122695]
[1748870314023,25.31157809,153.76,153.72,69.96122695]
[1748870314251,25.31157809,153.77,153.73,25.31157809]
[1748870314436,25.31157809,153.77,153.73,31.81635415]
[1748870315243,25.31157809,153.76,153.73,6.50477606]
[1748870316730,25.31157809,153.77,153.73,6.50477606]
[1748870316924,25.31157809,153.77,153.74,18.64964886]
[1748870317129,35.81157809,153.79,153.76,18.64964886]
[1748870318856,10.5,153.79,153.76,18.64964886]
[1748870319033,25.31157809,153.77,153.76,18.64964886]
[1748870319344,25.31157809,153.77,153.73,6.50474368]
[1748870319653,25.31157809,153.76,153.74,18.64964886]
[1748870319858,25.31157809,153.77,153.74,18.64964886]
[1748870320269,25.31157809,153.76,153.74,18.64964886]
[1748870324243,25.31157809,153.75,153.74,18.64964886]
[1748870325143,25.31157809,153.75,153.72,26.0]
[1748870325344,25.31157809,153.75,153.73,18.64964886]
[1748870325937,25.31157809,153.74,153.73,18.64964886]
[1748870327078,25.31157809,153.75,153.73,18.64964886]
[1748870330469,25.31157809,153.74,153.73,18.64964886]
[1748870332767,25.31157809,153.76,153.73,25.15452989]
[1748870336262,25.31157809,153.75,153.73,25.15452989]
[1748870339059,25.31157809,153.76,153.73,25.15452989]
[1748870339378,25.31157809,153.76,153.73,65.09452989]
[1748870347483,25.31157809,153.75,153.73,65.09452989]
[1748870349266,25.31157809,153.75,153.73,25.15452989]
[1748870349987,25.31157809,153.74,153.73,18.64964886]